Workbook

Sheet INICIO
B23: Plan Estratégico De Tecnologías De La Información y Las Comunicaciones 2016-2020

Sheet PLANIFICACION_PRES
B2: PROYECCIÓN DE EJECUCION PRESUPUESTAL PETIC 2016-2020 CANAL CAPITAL
B4: PRESUPUESTO ANUAL | E4: =SUM(Regalos[Presupuesto 2018],Empaquetado[Presupuesto 2018],(Viajes[Presupuesto 2018],(Comidas[Presupuesto 2018],(Entretenimiento[Presupuesto 2018],Varios[Presupuesto 2018])))) ->  | G4: PRODUCCIÓN
B5: PROPUESTA DE PROYECTOS | E5: =SUM((Regalos[Costo Estimado],(Empaquetado[Costo Estimado],(Viajes[Costo Estimado],(Comidas[Costo Estimado],(Entretenimiento[Costo Estimado],(Varios[Costo Estimado]))))))) -> 11620300000 | G5: Proyecto | H5: Presupuesto 2018 | I5: Costo Estimado | J5: Necesidad Presupuestal
B6: DIFERENCIA (por encima/por debajo de lo presupuestado) | E6: =SUM(E4-E5) ->  | G6: Sistemas de gestión de red UHF para micrófonos inalámbricos | H6: =RUTA_ESTRAT!D34+RUTA_ESTRAT!E34+RUTA_ESTRAT!F34 -> 0 | I6: 70000000 | J6: =Comidas[Presupuesto 2018]-Comidas[Costo Estimado] -> -70000000
C7: SISTEMAS | G7: Equipo de Iluminación | H7: =RUTA_ESTRAT!D35+RUTA_ESTRAT!E35+RUTA_ESTRAT!F35 -> 0 | I7: 80000000 | J7: =Comidas[Presupuesto 2018]-Comidas[Costo Estimado] -> -80000000
B8: CENTRO DE DATOS Y CONTINGENCIA | G8: Set virtual con tracking | H8: =RUTA_ESTRAT!D36+RUTA_ESTRAT!E36+RUTA_ESTRAT!F36 -> 352500000 | I8: 705000000 | J8: =Comidas[Presupuesto 2018]-Comidas[Costo Estimado] -> -352500000
B9: Proyecto | C9: Presupuesto 2018 | D9: Costo Estimado | E9: Necesidad Presupuestal | H9: =RUTA_ESTRAT!D37+RUTA_ESTRAT!E37+RUTA_ESTRAT!F37 -> 352500000
B10: Data center | C10: 96000000 | D10: 110000000 | E10: =Regalos[Presupuesto 2018]-Regalos[Costo Estimado] -> -14000000 | G10: Total | H10: =SUBTOTAL(109,Comidas[Presupuesto 2018]) -> 705000000 | I10: =SUBTOTAL(109,Comidas[Costo Estimado]) -> 855000000 | J10: =SUBTOTAL(109,Comidas[Necesidad Presupuestal]) -> -502500000
B11: San | D11: 120000000 | E11: =Regalos[Presupuesto 2018]-Regalos[Costo Estimado] -> -120000000
B12: Firewall alta disponibilidad | D12: 50000000 | E12: =Regalos[Presupuesto 2018]-Regalos[Costo Estimado] -> -50000000 | G12: POSTPRODUCCIÓN
B13: Licenciamiento | C13: 65000000 | D13: 120000000 | E13: =Regalos[Presupuesto 2018]-Regalos[Costo Estimado] -> -55000000 | G13: Proyecto | H13: Presupuesto 2018 | I13: Costo Estimado | J13: Necesidad Presupuestal
B14: Centro de datos de respaldo | D14: 900000000 | E14: =Regalos[Presupuesto 2018]-Regalos[Costo Estimado] -> -900000000 | G14: Mejoras en la Infraestructura de red | H14: =RUTA_ESTRAT!D41+RUTA_ESTRAT!E41+RUTA_ESTRAT!F41 -> 33333333.33 | I14: 100000000 | J14: =Entretenimiento[Presupuesto 2018]-Entretenimiento[Costo Estimado] -> -66666666.67
B15: Renovación tecnológica | C15: 60000000 | D15: 240000000 | E15: =Regalos[Presupuesto 2018]-Regalos[Costo Estimado] -> -180000000 | G15: Red de datos en Fibra Óptica | H15: =RUTA_ESTRAT!D42+RUTA_ESTRAT!E42+RUTA_ESTRAT!F42 -> 45000000 | I15: 45000000 | J15: =Entretenimiento[Presupuesto 2018]-Entretenimiento[Costo Estimado] -> 0
B16: Total | C16: =SUBTOTAL(109,Regalos[Presupuesto 2018]) -> 221000000 | D16: =SUBTOTAL(109,Regalos[Costo Estimado]) -> 1540000000 | E16: =SUBTOTAL(109,Regalos[Necesidad Presupuestal]) -> -1319000000 | G16: MAM | H16: =RUTA_ESTRAT!D43+RUTA_ESTRAT!E43+RUTA_ESTRAT!F43 -> 280000000 | I16: 280000000 | J16: =Entretenimiento[Presupuesto 2018]-Entretenimiento[Costo Estimado] -> 0
G17: Sistema de Archivo | H17: =RUTA_ESTRAT!D44+RUTA_ESTRAT!E44+RUTA_ESTRAT!F44 -> 1200000000 | I17: 1200000000 | J17: =Entretenimiento[Presupuesto 2018]-Entretenimiento[Costo Estimado] -> 0
B18: SOFTWARE Y GESTIÓN DOCUMENTAL | G18: Proyecto de Digitalización | H18: =RUTA_ESTRAT!D45+RUTA_ESTRAT!E45+RUTA_ESTRAT!F45 -> 833333333.3 | I18: 2500000000 | J18: =Entretenimiento[Presupuesto 2018]-Entretenimiento[Costo Estimado] -> -1666666667
B19: Proyecto | C19: Presupuesto 2018 | D19: Costo Estimado | E19: Necesidad Presupuestal | G19: Almacenamiento | H19: =RUTA_ESTRAT!D46+RUTA_ESTRAT!E46+RUTA_ESTRAT!F46 -> 125000000 | I19: 250000000 | J19: =Entretenimiento[Presupuesto 2018]-Entretenimiento[Costo Estimado] -> -125000000
B20: Sistema integrado de gestión documental | C20: 60000000 | D20: 100000000 | E20: =Empaquetado[Presupuesto 2018]-Empaquetado[Costo Estimado] -> -40000000 | G20: Graficación y edición | H20: =RUTA_ESTRAT!E47+RUTA_ESTRAT!F47+RUTA_ESTRAT!#REF! ->  | I20: 60000000 | J20: =Entretenimiento[Presupuesto 2018]-Entretenimiento[Costo Estimado] -> 
B21: sistema de gestión empresarial | D21: 1500000000 | E21: =Empaquetado[Presupuesto 2018]-Empaquetado[Costo Estimado] -> -1500000000 | G21: Tratamiento de audio | H21: =RUTA_ESTRAT!D48+RUTA_ESTRAT!E48+RUTA_ESTRAT!F48 -> 0 | I21: 25000000 | J21: =Entretenimiento[Presupuesto 2018]-Entretenimiento[Costo Estimado] -> -25000000
E22: =Empaquetado[Presupuesto 2018]-Empaquetado[Costo Estimado] -> 0 | G22: Total | H22: =SUBTOTAL(109,Entretenimiento[Presupuesto 2018]) ->  | I22: =SUBTOTAL(109,Entretenimiento[Costo Estimado]) -> 4460000000 | J22: =SUBTOTAL(109,Entretenimiento[Necesidad Presupuestal]) -> 
B24: Total | C24: =SUBTOTAL(109,Empaquetado[Presupuesto 2018]) -> 60000000 | D24: =SUBTOTAL(109,Empaquetado[Costo Estimado]) -> 1600000000 | E24: =SUBTOTAL(109,Empaquetado[Necesidad Presupuestal]) -> -1540000000 | G24: EMISIÓN
B25: ÁREA TÉCNICA | G25: Proyecto | H25: Presupuesto 2018 | I25: Costo Estimado | J25: Necesidad Presupuestal
B26: CONTRIBUCIONES | G26: Servidor de automatización de respaldo | H26: =RUTA_ESTRAT!D53+RUTA_ESTRAT!E53+RUTA_ESTRAT!F53 -> 199518472 | I26: 250000000 | J26: =Varios[Presupuesto 2018]-Varios[Costo Estimado] -> -50481528
B27: Proyecto | C27: Presupuesto 2018 | D27: Costo Estimado | E27: Necesidad Presupuestal | G27: Canales de tx de backup | H27: =RUTA_ESTRAT!D54+RUTA_ESTRAT!E54+RUTA_ESTRAT!F54 -> 66666666.67 | I27: 100000000 | J27: =Varios[Presupuesto 2018]-Varios[Costo Estimado] -> -33333333.33
B28: Ampliación de la infraestructura de transmisión 3G/4G | C28: =RUTA_ESTRAT!D23+RUTA_ESTRAT!E23+RUTA_ESTRAT!F23 -> 0 | D28: 120000000 | E28: =Viajes[Presupuesto 2018]-Viajes[Costo Estimado] -> -120000000 | G28: Infraestructura para monitoreo de señales satelitales | H28: =RUTA_ESTRAT!D55+RUTA_ESTRAT!E55+RUTA_ESTRAT!F55 -> 18000000 | I28: 40000000 | J28: =Varios[Presupuesto 2018]-Varios[Costo Estimado] -> -22000000
B29: Sistema de recepción de microondas HD | C29: =RUTA_ESTRAT!D24+RUTA_ESTRAT!E24+RUTA_ESTRAT!F24 -> 0 | D29: 350000000 | E29: =Viajes[Presupuesto 2018]-Viajes[Costo Estimado] -> -350000000 | G29: Analizador de espectro | H29: =RUTA_ESTRAT!D56+RUTA_ESTRAT!E56+RUTA_ESTRAT!F56 -> 20000000 | I29: 30000000 | J29: =Varios[Presupuesto 2018]-Varios[Costo Estimado] -> -10000000
B30: Electrónica de procesamiento | C30: =RUTA_ESTRAT!D25+RUTA_ESTRAT!E25+RUTA_ESTRAT!F25 -> 0 | D30: 30000000 | E30: =Viajes[Presupuesto 2018]-Viajes[Costo Estimado] -> -30000000 | G30: Servicio de retorno de operadores de TV por suscripción | H30: =RUTA_ESTRAT!D57+RUTA_ESTRAT!E57+RUTA_ESTRAT!F57 -> 8000000 | I30: 8000000 | J30: =Varios[Presupuesto 2018]-Varios[Costo Estimado] -> 0
B31: Modems WiFi | C31: =RUTA_ESTRAT!D26+RUTA_ESTRAT!E26+RUTA_ESTRAT!F26 -> 0 | D31: 2500000 | E31: =Viajes[Presupuesto 2018]-Viajes[Costo Estimado] -> -2500000 | G31: Electrónica de procesamiento | H31: =RUTA_ESTRAT!D58+RUTA_ESTRAT!E58+RUTA_ESTRAT!F58 -> 17500000 | I31: 35000000 | J31: =Varios[Presupuesto 2018]-Varios[Costo Estimado] -> -17500000
B32: Servidor de ingesta Banda Base | C32: =RUTA_ESTRAT!D27+RUTA_ESTRAT!E27+RUTA_ESTRAT!F27 -> 40000000 | D32: 40000000 | E32: =Viajes[Presupuesto 2018]-Viajes[Costo Estimado] -> 0 | G32: Plataformas de OTT | H32: =RUTA_ESTRAT!D59+RUTA_ESTRAT!E59+RUTA_ESTRAT!F59 -> 150000000 | I32: 150000000 | J32: =Varios[Presupuesto 2018]-Varios[Costo Estimado] -> 0
B33: Servidor de QC | C33: =RUTA_ESTRAT!D28+RUTA_ESTRAT!E28+RUTA_ESTRAT!F28 -> 0 | D33: 50000000 | E33: =Viajes[Presupuesto 2018]-Viajes[Costo Estimado] -> -50000000 | G33: Señal segundo canal TDT | H33: =RUTA_ESTRAT!D60+RUTA_ESTRAT!E60+RUTA_ESTRAT!F60 -> 650000000 | I33: 650000000 | J33: =Varios[Presupuesto 2018]-Varios[Costo Estimado] -> 0
B34: Encoder de streming | C34: =RUTA_ESTRAT!D29+RUTA_ESTRAT!E29+RUTA_ESTRAT!F29 -> 25000000 | D34: 25000000 | E34: =Viajes[Presupuesto 2018]-Viajes[Costo Estimado] -> 0 | G34: Servidores de Replay | H34: =RUTA_ESTRAT!D61+RUTA_ESTRAT!E61+RUTA_ESTRAT!F61 -> 195000000 | I34: 240000000 | J34: =Varios[Presupuesto 2018]-Varios[Costo Estimado] -> -45000000
B35: Total | C35: =SUBTOTAL(109,Viajes[Presupuesto 2018]) -> 65000000 | D35: =SUBTOTAL(109,Viajes[Costo Estimado]) -> 617500000 | E35: =SUBTOTAL(109,Viajes[Necesidad Presupuestal]) -> -552500000 | G35: Micrófonos de diadema | H35: =RUTA_ESTRAT!D62+RUTA_ESTRAT!E62+RUTA_ESTRAT!F62 -> 10000000 | I35: 20000000 | J35: =Varios[Presupuesto 2018]-Varios[Costo Estimado] -> -10000000
G36: Micrófonos de solapa o DPA | H36: =RUTA_ESTRAT!D63+RUTA_ESTRAT!E63+RUTA_ESTRAT!F63 -> 0 | I36: 20000000 | J36: =Varios[Presupuesto 2018]-Varios[Costo Estimado] -> -20000000
G37: Complemento a sistema de apuntadores | H37: =RUTA_ESTRAT!D64+RUTA_ESTRAT!E64+RUTA_ESTRAT!F64 -> 35000000 | I37: 35000000 | J37: =Varios[Presupuesto 2018]-Varios[Costo Estimado] -> 0
G38: Híbrido de 2 líneas | H38: =RUTA_ESTRAT!D65+RUTA_ESTRAT!E65+RUTA_ESTRAT!F65 -> 0 | I38: 25000000 | J38: =Varios[Presupuesto 2018]-Varios[Costo Estimado] -> -25000000
G39: Procesadores de señal multipropósito. | H39: =RUTA_ESTRAT!D66+RUTA_ESTRAT!E66+RUTA_ESTRAT!F66 -> 20000000 | I39: 25000000 | J39: =Varios[Presupuesto 2018]-Varios[Costo Estimado] -> -5000000
G40: Tarjetas distribuidoras | H40: =RUTA_ESTRAT!D67+RUTA_ESTRAT!E67+RUTA_ESTRAT!F67 -> 18000000 | I40: 18000000 | J40: =Varios[Presupuesto 2018]-Varios[Costo Estimado] -> 0
G41: Cuatro cadenas de cámara | H41: =RUTA_ESTRAT!D68+RUTA_ESTRAT!E68+RUTA_ESTRAT!F68 -> 0 | I41: 720000000 | J41: =Varios[Presupuesto 2018]-Varios[Costo Estimado] -> -720000000
G42: Medusa snake de 16 canales. | H42: =RUTA_ESTRAT!D69+RUTA_ESTRAT!E69+RUTA_ESTRAT!F69 -> 65000000 | I42: 65000000 | J42: =Varios[Presupuesto 2018]-Varios[Costo Estimado] -> 0
G43: CD player | H43: =RUTA_ESTRAT!D70+RUTA_ESTRAT!E70+RUTA_ESTRAT!F70 -> 1800000 | I43: 1800000 | J43: =Varios[Presupuesto 2018]-Varios[Costo Estimado] -> 0
G44: Switchera auxiliar | H44: =RUTA_ESTRAT!D71+RUTA_ESTRAT!E71+RUTA_ESTRAT!F71 -> 13000000 | I44: 13000000 | J44: =Varios[Presupuesto 2018]-Varios[Costo Estimado] -> 0
G45: Servidor de reproducción | H45: =RUTA_ESTRAT!D72+RUTA_ESTRAT!E72+RUTA_ESTRAT!F72 -> 90000000 | I45: 90000000 | J45: =Varios[Presupuesto 2018]-Varios[Costo Estimado] -> 0
G46: Tres Computadores portátiles para reproducción. | H46: =RUTA_ESTRAT!D73+RUTA_ESTRAT!E73+RUTA_ESTRAT!F73 -> 6000000 | I46: 12000000 | J46: =Varios[Presupuesto 2018]-Varios[Costo Estimado] -> -6000000
G47: Total | H47: =SUBTOTAL(109,Varios[Presupuesto 2018]) -> 1583485139 | I47: =SUBTOTAL(109,Varios[Costo Estimado]) -> 2547800000 | J47: =SUBTOTAL(109,Varios[Necesidad Presupuestal]) -> -964314861.3

Sheet RUTA_ESTRAT
B2: HOJA DE RUTA
B3: SISTEMAS
B4: CENTRO DE DATOS Y CONTINGENCIA
B5: Proyecto | C5: Costo Estimado | D5: PRESUPUESTO | G5: TOTAL | H5: NECESIDAD PRESUPUESTAL 2021 | I5: OBSERVACIONES
D6: 2018 | E6: 2019 | F6: 2020
B7: =PLANIFICACION_PRES!B10 -> Data center | C7: =PLANIFICACION_PRES!D10 -> 110000000 | D7: 58312240 | E7: 0 | F7: 73000000 | G7: =SUM(D7:F7) -> 131312240 | H7: =C7-G7 -> -21312240
B8: =PLANIFICACION_PRES!B11 -> San | C8: =PLANIFICACION_PRES!D11 -> 120000000 | D8: 0 | E8: 0 | F8: 120000000 | G8: 120000000 | H8: 0
B9: =PLANIFICACION_PRES!B12 -> Firewall alta disponibilidad | C9: =PLANIFICACION_PRES!D12 -> 50000000 | D9: 0 | E9: 0 | F9: 50000000 | G9: 50000000 | H9: 0
B10: =PLANIFICACION_PRES!B13 -> Licenciamiento | C10: =PLANIFICACION_PRES!D13 -> 120000000 | D10: 267870962 | E10: 67500000 | F10: 38000000 | G10: 373370962 | H10: -253370962
B11: =PLANIFICACION_PRES!B14 -> Centro de datos de respaldo | C11: =PLANIFICACION_PRES!D14 -> 900000000 | D11: 0 | E11: 0 | F11: 600000000 | G11: 600000000 | H11: 300000000
B12: =PLANIFICACION_PRES!B15 -> Renovación tecnológica | C12: =PLANIFICACION_PRES!D15 -> 240000000 | D12: =60000000+37186469 -> 97186469 | E12: 61800000 | F12: 60000000 | G12: 218986469 | H12: 21013531
B13: SOFTWARE Y GESTION DOCUMENTAL
B14: Proyecto | C14: Costo Estimado | D14: PRESUPUESTO | G14: TOTAL | H14: NECESIDAD PRESUPUESTAL 2021 | I14: OBSERVACIONES
D15: 2018 | E15: 2019 | F15: 2020
B16: =PLANIFICACION_PRES!B20 -> Sistema integrado de gestión documental | C16: =PLANIFICACION_PRES!D20 -> 100000000 | G16: =SUM(D16:F16) -> 0 | H16: =C16-G16 -> 100000000
B17: =PLANIFICACION_PRES!B21 -> sistema de gestión empresarial | C17: =PLANIFICACION_PRES!D21 -> 1500000000 | D17: 0 | E17: 0 | F17: 1125000000 | G17: =SUM(D17:F17) -> 1125000000 | H17: =C17-G17 -> 375000000
B18: HOJA DE RUTA
B19: AREA TECNICA
B20: CONTRIBUCIONES
B21: Proyecto | C21: Costo Estimado | D21: PRESUPUESTO | G21: TOTAL | H21: NECESIDAD PRESUPUESTAL 2021 | I21: OBSERVACIONES
D22: 2018 | E22: 2019 | F22: 2020
B23: =PLANIFICACION_PRES!B28 -> Ampliación de la infraestructura de transmisión 3G/4G | C23: =PLANIFICACION_PRES!D28 -> 120000000 | D23: 0 | E23: 0 | F23: 0 | G23: =SUM(D23:F23) -> 0 | H23: =C23-G23 -> 120000000
B24: =PLANIFICACION_PRES!B29 -> Sistema de recepción de microondas HD | C24: =PLANIFICACION_PRES!D29 -> 350000000 | D24: 0 | E24: 0 | F24: 0 | G24: 0 | H24: 350000000
B25: =PLANIFICACION_PRES!B30 -> Electrónica de procesamiento | C25: =PLANIFICACION_PRES!D30 -> 30000000 | D25: 0 | E25: 0 | F25: 0 | G25: 0 | H25: 30000000
B26: =PLANIFICACION_PRES!B31 -> Modems WiFi | C26: =PLANIFICACION_PRES!D31 -> 2500000 | D26: 0 | E26: 0 | F26: 0 | G26: 0 | H26: 2500000
B27: =PLANIFICACION_PRES!B32 -> Servidor de ingesta Banda Base | C27: =PLANIFICACION_PRES!D32 -> 40000000 | D27: 0 | E27: =C27/2 -> 20000000 | F27: =C27/2 -> 20000000 | G27: 40000000 | H27: 0
B28: =PLANIFICACION_PRES!B33 -> Servidor de QC | C28: =PLANIFICACION_PRES!D33 -> 50000000 | D28: 0 | E28: 0 | F28: 0 | G28: 0 | H28: 50000000
B29: =PLANIFICACION_PRES!B34 -> Encoder de streming | C29: =PLANIFICACION_PRES!D34 -> 25000000 | D29: 0 | E29: 0 | F29: =C29 -> 25000000 | G29: 25000000 | H29: 0
C30: =SUM(C23:C29) -> 617500000 | D30: =SUM(D23:D29) -> 0 | E30: =SUM(E23:E29) -> 20000000 | F30: =SUM(F23:F29) -> 45000000 | G30: =SUM(G22:G29) -> 65000000
B31: PRODUCCIÓN
B32: Proyecto | C32: Costo Estimado | D32: PRESUPUESTO | G32: TOTAL | H32: NECESIDAD PRESUPUESTAL 2021 | I32: OBSERVACIONES
D33: 2018 | E33: 2019 | F33: 2020
B34: =PLANIFICACION_PRES!G6 -> Sistemas de gestión de red UHF para micrófonos inalámbricos | C34: =PLANIFICACION_PRES!I6 -> 70000000 | D34: 0 | E34: 0 | F34: 0 | G34: 0 | H34: =C34-G34 -> 70000000
B35: =PLANIFICACION_PRES!G7 -> Equipo de Iluminación | C35: =PLANIFICACION_PRES!I7 -> 80000000 | D35: 0 | E35: 0 | F35: 0 | G35: =SUM(D35:F35) -> 0 | H35: =C35-G35 -> 80000000
B36: =PLANIFICACION_PRES!G8 -> Set virtual con tracking | C36: =PLANIFICACION_PRES!I8 -> 705000000 | D36: 0 | E36: =C36/4 -> 176250000 | F36: =C36/4 -> 176250000 | G36: =SUM(D36:F36) -> 352500000 | H36: =C36-G36 -> 352500000
C37: =SUM(C31:C36) -> 855000000 | D37: =SUM(D34:D36) -> 0 | E37: =SUM(E34:E36) -> 176250000 | F37: =SUM(F34:F36) -> 176250000 | G37: =SUM(G34:G36) -> 352500000
B38: POSTPRODUCCIÓN
B39: Proyecto | C39: Costo Estimado | D39: PRESUPUESTO | G39: TOTAL | H39: NECESIDAD PRESUPUESTAL 2021 | I39: OBSERVACIONES
D40: 2018 | E40: 2019 | F40: 2020
B41: =PLANIFICACION_PRES!G14 -> Mejoras en la Infraestructura de red | C41: =PLANIFICACION_PRES!I14 -> 100000000 | D41: 0 | E41: =C41/3 -> 33333333.33 | F41: 0 | G41: =SUM(D41:F41) -> 33333333.33 | H41: =C41-G41 -> 66666666.67
B42: =PLANIFICACION_PRES!G15 -> Red de datos en Fibra Óptica | C42: =PLANIFICACION_PRES!I15 -> 45000000 | D42: 0 | E42: 0 | F42: =C42 -> 45000000 | G42: 45000000 | H42: 0
B43: =PLANIFICACION_PRES!G16 -> MAM | C43: =PLANIFICACION_PRES!I16 -> 280000000 | D43: =0 -> 0 | E43: =C43 -> 280000000 | F43: 0 | G43: 280000000 | H43: 0
B44: =PLANIFICACION_PRES!G17 -> Sistema de Archivo | C44: =PLANIFICACION_PRES!I17 -> 1200000000 | D44: 0 | E44: =C44/2 -> 600000000 | F44: =C44/2 -> 600000000 | G44: 1200000000 | H44: 0
B45: =PLANIFICACION_PRES!G18 -> Proyecto de Digitalización | C45: =PLANIFICACION_PRES!I18 -> 2500000000 | D45: 0 | E45: 0 | F45: =C45/3 -> 833333333.3 | G45: 833333333.3 | H45: 1666666667
B46: =PLANIFICACION_PRES!G19 -> Almacenamiento | C46: =PLANIFICACION_PRES!I19 -> 250000000 | D46: =0 -> 0 | E46: 0 | F46: =C46/2 -> 125000000 | G46: 125000000 | H46: 125000000
B47: =PLANIFICACION_PRES!G20 -> Graficación y edición | C47: =PLANIFICACION_PRES!I20 -> 60000000 | D47: 0 | E47: =40000000 -> 40000000 | F47: =20000000 -> 20000000 | G47: =SUM(E47:F47) -> 60000000 | H47: 0
B48: =PLANIFICACION_PRES!G21 -> Tratamiento de audio | C48: =PLANIFICACION_PRES!I21 -> 25000000 | G48: 0 | H48: 25000000
C49: =SUM(C42:C48) -> 4360000000 | D49: =SUM(D41:D48) -> 0 | E49: =SUM(E41:E48) -> 953333333.3 | F49: =SUM(F41:F48) -> 1623333333 | G49: =SUM(G41:G48) -> 2576666667
B50: EMISION
B51: Proyecto | C51: Costo Estimado | D51: PRESUPUESTO | G51: TOTAL | H51: NECESIDAD PRESUPUESTAL 2021 | I51: OBSERVACIONES
D52: 2018 | E52: 2019 | F52: 2020
B53: =PLANIFICACION_PRES!G26 -> Servidor de automatización de respaldo | C53: 199518472 | D53: 199518472 | E53: 0 | F53: 0 | G53: =SUM(D53:F53) -> 199518472 | H53: =C53-G53 -> 0
B54: =PLANIFICACION_PRES!G27 -> Canales de tx de backup | C54: =PLANIFICACION_PRES!I27 -> 100000000 | D54: 0 | E54: =C54/3 -> 33333333.33 | F54: =C54/3 -> 33333333.33 | G54: 66666666.67 | H54: 33333333.33
B55: =PLANIFICACION_PRES!G28 -> Infraestructura para monitoreo de señales satelitales | C55: =PLANIFICACION_PRES!I28 -> 40000000 | D55: 0 | E55: 18000000 | F55: 0 | G55: =SUM(D55:F55) -> 18000000 | H55: 22000000
B56: =PLANIFICACION_PRES!G29 -> Analizador de espectro | C56: =PLANIFICACION_PRES!I29 -> 30000000 | D56: 0 | E56: =20000000 -> 20000000 | F56: 0 | G56: =SUM(D56:F56) -> 20000000 | H56: 10000000
B57: =PLANIFICACION_PRES!G30 -> Servicio de retorno de operadores de TV por suscripción | C57: =PLANIFICACION_PRES!I30 -> 8000000 | D57: 0 | E57: 4000000 | F57: 4000000 | G57: =SUM(D57:F57) -> 8000000 | H57: 0
B58: =PLANIFICACION_PRES!G31 -> Electrónica de procesamiento | C58: =PLANIFICACION_PRES!I31 -> 35000000 | D58: 0 | E58: =C58/2 -> 17500000 | F58: 0 | G58: 17500000 | H58: 17500000
B59: =PLANIFICACION_PRES!G32 -> Plataformas de OTT | C59: =PLANIFICACION_PRES!I32 -> 150000000 | D59: 0 | E59: 0 | F59: 150000000 | G59: 150000000 | H59: 0
B60: =PLANIFICACION_PRES!G33 -> Señal segundo canal TDT | C60: =PLANIFICACION_PRES!I33 -> 650000000 | D60: 0 | E60: 0 | F60: 650000000 | G60: 650000000 | H60: 0
B61: =PLANIFICACION_PRES!G34 -> Servidores de Replay | C61: 195000000 | D61: 195000000 | E61: 0 | F61: 0 | G61: =SUM(D61:F61) -> 195000000 | H61: =C61-G61 -> 0
B62: =PLANIFICACION_PRES!G35 -> Micrófonos de diadema | C62: =PLANIFICACION_PRES!I35 -> 20000000 | D62: 0 | E62: 0 | F62: =C62/2 -> 10000000 | G62: 10000000 | H62: 10000000
B63: =PLANIFICACION_PRES!G36 -> Micrófonos de solapa o DPA | C63: =PLANIFICACION_PRES!I36 -> 20000000 | D63: 0 | E63: 0 | F63: 0 | G63: 0 | H63: 20000000
B64: =PLANIFICACION_PRES!G37 -> Complemento a sistema de apuntadores | C64: =PLANIFICACION_PRES!I37 -> 35000000 | D64: 0 | E64: =C64 -> 35000000 | F64: 0 | G64: 35000000 | H64: 0
B65: =PLANIFICACION_PRES!G38 -> Híbrido de 2 líneas | C65: =PLANIFICACION_PRES!I38 -> 25000000 | D65: 0 | E65: 0 | F65: 0 | G65: 0 | H65: 25000000
B66: =PLANIFICACION_PRES!G39 -> Procesadores de señal multipropósito. | C66: =PLANIFICACION_PRES!I39 -> 25000000 | D66: 0 | E66: 20000000 | F66: 0 | G66: 20000000 | H66: 5000000
B67: =PLANIFICACION_PRES!G40 -> Tarjetas distribuidoras | C67: =PLANIFICACION_PRES!I40 -> 18000000 | D67: 0 | E67: 0 | F67: =C67 -> 18000000 | G67: 18000000 | H67: 0
B68: =PLANIFICACION_PRES!G41 -> Cuatro cadenas de cámara | C68: =PLANIFICACION_PRES!I41 -> 720000000 | D68: 0 | E68: 0 | F68: 0 | G68: 0 | H68: 720000000
B69: =PLANIFICACION_PRES!G42 -> Medusa snake de 16 canales. | C69: =PLANIFICACION_PRES!I42 -> 65000000 | D69: 0 | E69: =C69 -> 65000000 | F69: 0 | G69: 65000000 | H69: 0
B70: =PLANIFICACION_PRES!G43 -> CD player | C70: =PLANIFICACION_PRES!I43 -> 1800000 | D70: 0 | E70: 1800000 | F70: 0 | G70: 1800000 | H70: 0
B71: =PLANIFICACION_PRES!G44 -> Switchera auxiliar | C71: =PLANIFICACION_PRES!I44 -> 13000000 | D71: 0 | E71: 0 | F71: =C71 -> 13000000 | G71: 13000000 | H71: 0
B72: =PLANIFICACION_PRES!G45 -> Servidor de reproducción | C72: =PLANIFICACION_PRES!I45 -> 90000000 | D72: 0 | E72: =C72 -> 90000000 | F72: 0 | G72: 90000000 | H72: 0
B73: =PLANIFICACION_PRES!G46 -> Tres Computadores portátiles para reproducción. | C73: =PLANIFICACION_PRES!I46 -> 12000000 | E73: 0 | F73: =C73/2 -> 6000000 | G73: 6000000 | H73: 6000000
C74: =SUM(C67:C73) -> 919800000 | D74: =SUM(D53:D73) -> 394518472 | E74: =SUM(E66:E73) -> 176800000 | F74: =SUM(F66:F73) -> 37000000 | G74: =SUM(G66:G73) -> 213800000
C76: =C30+C37+C49+C74 -> 6752300000 | D76: =D30+D37+D49+D74 -> 394518472 | E76: =E30+E37+E49+E74 -> 1326383333 | F76: =F30+F37+F49+F74 -> 1881583333 | G76: =G30+G37+G49+G74 -> 3207966667

Sheet GRAFICOS
B7: CUADRO PRESUPUESTAL 2018-2020
B8: PRESUPTO 2018 | E8: =SUM(Regalos[Presupuesto 2018],Empaquetado[Presupuesto 2018],(Viajes[Presupuesto 2018],(Comidas[Presupuesto 2018],(Entretenimiento[Presupuesto 2018],Varios[Presupuesto 2018])))) -> 
B9: PRESUPTO PROYECTADO | E9: =SUM((Regalos[Costo Estimado],(Empaquetado[Costo Estimado],(Viajes[Costo Estimado],(Comidas[Costo Estimado],(Entretenimiento[Costo Estimado],(Varios[Costo Estimado]))))))) -> 11620300000
B10: POR DEFINIR | E10: =SUM(E8-E9) -> 
B29: PROYECTOS PLANTEADOS PETIC 2016-2020
B31: PROYECTOS | C31: FINANCIADOS 2018 | D31: POR FINANCIAR
B32: 47 | C32: 32 | D32: =B32-C32 -> 15

Sheet OBSERV
A5: CENTRO DE DATOS Y CONTINGENCIA
A7: 1 | B7: data center | C7: los recursos asignados para mantenimiento de infraestructura y centro de datos se afectaran en un 25% del rubro para la implementación de acciones de actualización relacionadas con su funcionamiento
A8: 2 | B8: san | C8: unidades de almacenamiento masivo, requieren de financiación para su apropiación, la inversión debería ser única, debido a su alta criticidad.
A9: 3 | B9: firewall | C9: contemplar la contingencia del corta fuegos del canal con el fin de mantener la operatividad y seguridad del recurso de red.
A10: 4 | B10: licenciamiento | C10: actualización progresiva del licenciamiento dando prioridad a el paquete de oficina y sistemas operativos.
A11: 5 | B11: datacenter de respaldo | C11: sujeto a planes de virtualizacion de la infraestructura de respaldo, y/o implementación en otras ubicaciones fisicas del canal o entidades del distrito
A12: 6 | B12: renovación tecnológica | C12: Requiere planeación y disponibilidad presupuestal a 2021 para alcanzar el objetivo, sin embargo no se tiene en cuenta la depreciación de los bienes en los 5 años de renovación
A15: SOFTWARE Y GESTION DOCUMENTAL
A17: 1 | B17: Sistema integrado de gestión documental
A18: 2 | B18: sistema de gestión empresarial | C18: la implementacion del ERP se puede realizar por fases ya sea de arrendamiento de las aplicaciones o por pagos mensuales que comprometeran la ejecucion presupuestal hasta la vigencia 2021, en un canon mensual de 31,250,000
A23: CONTRIBUCIONES
A25: 1 | B25: Ampliación de la infraestructura de transmisión 3G/4G | C25: Se recomienda buscar una fuente de financiación que ppermita expandir esta tecnología a otras marcas con el fin de ampliar posibilidades de contribución con otros puntos a nivel mundial además de abrir mercado eliminando proveedor exclusivo en Canal Capital.
A26: 2 | B26: Sistema de recepción de microondas HD | C26: Depende de la línea que de la alta dirección del canal. La coordinación técnica recomienda invertir en ello con el fin de no perder la frecuencia asignada.
A27: 3 | B27: Electrónica de procesamiento | C27: Invrsión necesaria, puede hacerse de manera parcial.
A28: 4 | B28: Modems WiFi | C28: Se proyecta cubrimineto con recursos propios.
A29: 5 | B29: Servidor de ingesta Banda Base | C29: Se proyecta cubrimineto parcial con recursos propios en los próximos tres años.
A30: 6 | B30: Servidor de QC | C30: Su financiación puede trasladarse para el siguiente cuatrieonio.
A31: 7 | B31: Encoder de streming | C31: Se proyecta cubrimineto parcial con recursos propios en los próximos tres años.
A34: PRODUCCION
A36: 1 | B36: Sistemas de gestión de red UHF para micrófonos inalámbricos | C36: Su financiación puede trasladarse para el siguiente cuatrieonio.
A37: 2 | B37: Equipo de Iluminación | C37: Necesario buscar financiación para ello si se invierte en set virtual.
A38: 3 | B38: Set virtual con tracking | C38: Conviene buscar financiación por proyecto especial o terceros ante la necesidad de reducir costos en escenografía y optimización de espacios.
A41: POSTPRODUCCION
A43: 1 | B43: Mejoras en la Infraestructura de red | C43: Se proyecta cubrimineto parcial con recursos propios en los próximos tres años.
A44: 2 | B44: Red de datos en Fibra Óptica | C44: Se proyecta cubrimineto parcial con recursos propios en los próximos tres años.
A45: 3 | B45: MAM | C45: Proyecto de inversión por etapas al que por su monto se debiera buscar recursos por un ente externo.
A46: 4 | B46: Sistema de Archivo | C46: Proyecto de inversión por etapas al que por su monto se debiera buscar recursos por un ente externo.
A47: 5 | B47: Proyecto de Digitalización | C47: Proyecto de inversión por etapas al que por su monto se debiera buscar recursos por un ente externo.
A48: 6 | B48: Almacenamiento | C48: Necesario realizar inversión así sea de manera parcial para garantizar sufuciencia para cubrir producción en crecimiento.
A49: 7 | B49: Graficación y edición | C49: Se proyecta cubrimineto con recursos propios.
A50: 8 | B50: Tratamiento de audio | C50: Su financiación puede trasladarse para el siguiente cuatrieonio.
A53: EMISION
A55: 1 | B55: Servidor de automatizción de respaldo | C55: A financiar principalmente por ANTV.
A56: 2 | B56: Canales de tx de backup | C56: Necesario realizar inversión así sea de manera parcial para garantizar redundancia de los dos canales.
A57: 3 | B57: Infraestructura para monitoreo de señales satelitales | C57: Se proyecta cubrimineto parcial con recursos propios. Necesario buscar fuente de financiación alterna.
A58: 4 | B58: Analizador de espectro | C58: Se proyecta cubrimineto parcial con recursos propios. Necesario buscar fuente de financiación alterna.
A59: 5 | B59: Servicio de retorno de operadores de TV por suscripción | C59: Al tratarse de un servicio, sería conveniente que pudiese ser contratado por servicios administrativos.
A60: 6 | B60: Electrónica de procesamiento | C60: Se proyecta cubrimineto parcial con recursos propios en los próximos tres años.
A61: 7 | B61: Plataformas de OTT | C61: Conviene buscar financiación por proyecto especial o terceros ante la necesidad de seguir avanzando en la incursión a nuevas plataformas.
A62: 8 | B62: Señal segundo canal TDT | C62: Debiera ser financiado por la ANTV.
A63: 9 | B63: Servidores de Replay | C63: Conviene buscar financiación por proyecto especial o terceros ante la necesidad de cubrir con suficiencia tranmsiones deportivas.
A64: 10 | B64: Micrófonos de diadema | C64: Se proyecta cubrimineto parcial con recursos propios en los próximos tres años.
A65: 11 | B65: Micrófonos de solapa o DPA | C65: Se proyecta cubrimineto parcial con recursos propios en los próximos tres años.
A66: 12 | B66: Complemento a sistema de apuntadores | C66: Se proyecta cubrimineto parcial con recursos propios en el próximo año.
A67: 13 | B67: Híbrido de 2 líneas | C67: Su financiación puede trasladarse para el siguiente cuatrieonio.
A68: 14 | B68: Procesadores de señal multipropósito. | C68: Se proyecta cubrimineto parcial con recursos propios en los próximos tres años.
A69: 15 | B69: Tarjetas distribuidoras | C69: Se proyecta cubrimineto parcial con recursos propios en los próximos tres años.
A70: 16 | B70: Cuatro cadenas de cámara | C70: Conviene buscar financiación por proyecto especial o terceros ante la necesidad de cubrir con suficiencia las distintas tranmsiones.
A71: 17 | B71: Medusa snake de 16 canales. | C71: Su financiación puede trasladarse para el siguiente cuatrieonio.
A72: 18 | B72: CD player | C72: Se proyecta cubrimineto con recursos propios.
A73: 19 | B73: Switchera auxiliar | C73: Su financiación puede trasladarse para el siguiente cuatrieonio.
A74: 20 | B74: Servidor de reproducción | C74: Necesario realizar inversión para garantizar sufuciencia para cubrir tranmisiones en exteriores.
A75: 21 | B75: Tres Computadores portátiles para reproducción. | C75: Se proyecta cubrimineto con recursos propios en los próximos tres años.
